[Event "*** Titled Tuesday Blitz"]
[Site "Chess.com"]
[Date "2021.04.20"]
[Round "8"]
[White "Kobalia"]
[Black "Cptn2"]
[Result "1-0"]
[WhiteElo "2775"]
[BlackElo "2597"]
[TimeControl "180+1"]
[EndTime "11:26:48 PDT"]
[Termination "Kobalia won by resignation"]

1. e4 {[%clk 0:03:00.9]} 1... c5 {[%clk 0:02:57.1]} 2. Nf3 {[%clk 0:03:00.6]}
2... Nf6 {[%clk 0:02:55.4]} 3. d3 {[%clk 0:02:59.1]} 3... Nc6 {[%clk 0:02:47.8]}
4. g3 {[%clk 0:02:57.2]} 4... g6 {[%clk 0:02:47.1]} 5. Bg2 {[%clk 0:02:57]} 5...
Bg7 {[%clk 0:02:47.8]} 6. O-O {[%clk 0:02:57.2]} 6... O-O {[%clk 0:02:46.9]} 7.
Re1 {[%clk 0:02:57.5]} 7... d5 {[%clk 0:02:45.9]} 8. Nbd2 {[%clk 0:02:57.2]}
8... b6 {[%clk 0:02:39.2]} 9. c3 {[%clk 0:02:54.3]} 9... Bb7 {[%clk 0:02:39]}
10. e5 {[%clk 0:02:54.5]} 10... Ne8 {[%clk 0:02:33.6]} 11. d4 {[%clk 0:02:54.2]}
11... cxd4 {[%clk 0:02:32.3]} 12. cxd4 {[%clk 0:02:53.6]} 12... Nc7 {[%clk
0:02:32.9]} 13. Nb3 {[%clk 0:02:45.9]} 13... Ba6 {[%clk 0:02:26.7]} 14. Bd2
{[%clk 0:02:41.7]} 14... Qd7 {[%clk 0:02:26.2]} 15. Rc1 {[%clk 0:02:36.2]} 15...
Rac8 {[%clk 0:02:26.1]} 16. h4 {[%clk 0:02:33.3]} 16... Bd3 {[%clk 0:02:21]} 17.
Nh2 {[%clk 0:02:07.7]} 17... h5 {[%clk 0:01:12.2]} 18. Nf3 {[%clk 0:02:02.7]}
18... Be4 {[%clk 0:01:08.6]} 19. Ng5 {[%clk 0:02:02.4]} 19... Bxg2 {[%clk
0:01:07.8]} 20. Kxg2 {[%clk 0:02:03.3]} 20... Ne6 {[%clk 0:01:08.4]} 21. Nxe6
{[%clk 0:02:02.8]} 21... Qxe6 {[%clk 0:01:09.3]} 22. Qf3 {[%clk 0:01:56.2]}
22... a5 {[%clk 0:01:05.9]} 23. Bc3 {[%clk 0:01:49.4]} 23... Na7 {[%clk
0:01:04.3]} 24. Nd2 {[%clk 0:01:39.1]} 24... Nb5 {[%clk 0:01:02.1]} 25. Nf1
{[%clk 0:01:39.3]} 25... Bh6 {[%clk 0:01:00.5]} 26. Ne3 {[%clk 0:01:26.7]} 26...
Nxc3 {[%clk 0:00:44.6]} 27. bxc3 {[%clk 0:01:19.9]} 27... Bxe3 {[%clk
0:00:44.2]} 28. Rxe3 {[%clk 0:01:17]} 28... Rc4 {[%clk 0:00:43.6]} 29. Rb1
{[%clk 0:01:15.1]} 29... Qc6 {[%clk 0:00:42.4]} 30. g4 {[%clk 0:01:09.4]} 30...
hxg4 {[%clk 0:00:37.6]} 31. Qxg4 {[%clk 0:01:09.1]} 31... Kg7 {[%clk 0:00:20.8]}
32. h5 {[%clk 0:01:06.2]} 32... Rh8 {[%clk 0:00:20.8]} 33. e6 {[%clk 0:00:46.7]}
33... Rxh5 {[%clk 0:00:19]} 34. exf7 {[%clk 0:00:46.8]} 34... Kxf7 {[%clk
0:00:19]} 35. Rbe1 {[%clk 0:00:45.9]} 35... Qd6 {[%clk 0:00:16.9]} 36. Rxe7+
{[%clk 0:00:41.2]} 36... Qxe7 {[%clk 0:00:15.4]} 37. Rxe7+ {[%clk 0:00:39.1]}
37... Kxe7 {[%clk 0:00:16.3]} 38. Qxg6 {[%clk 0:00:38.7]} 38... Rh8 {[%clk
0:00:15.5]} 39. Qg7+ {[%clk 0:00:38.7]} 39... Kd6 {[%clk 0:00:15.4]} 40. Qxh8
{[%clk 0:00:38.8]} 40... Rxc3 {[%clk 0:00:15.4]} 41. Qd8+ {[%clk 0:00:37.7]}
41... Ke6 {[%clk 0:00:15.8]} 42. Qxb6+ {[%clk 0:00:37.3]} 42... Kf5 {[%clk
0:00:15.9]} 43. Qxa5 {[%clk 0:00:37.3]} 1-0

[Event "*** Titled Tuesday Blitz"]
[Site "Chess.com"]
[Date "2021.04.20"]
[Round "8"]
[White "Jungle_Jaguar"]
[Black "shnitez"]
[Result "1-0"]
[WhiteElo "2706"]
[BlackElo "2512"]
[TimeControl "180+1"]
[EndTime "11:26:48 PDT"]
[Termination "Jungle_Jaguar won on time"]

1. e4 {[%clk 0:03:00.9]} 1... c5 {[%clk 0:02:59.2]} 2. Nf3 {[%clk 0:03:01.2]}
2... e6 {[%clk 0:02:59.5]} 3. d4 {[%clk 0:03:00.9]} 3... cxd4 {[%clk 0:03:00.4]}
4. Nxd4 {[%clk 0:03:01.3]} 4... a6 {[%clk 0:03:00.8]} 5. c4 {[%clk 0:03:01.4]}
5... Nf6 {[%clk 0:03:00.5]} 6. Nc3 {[%clk 0:03:01.7]} 6... Qc7 {[%clk
0:03:00.6]} 7. Be2 {[%clk 0:02:58.5]} 7... b6 {[%clk 0:03:00.1]} 8. O-O {[%clk
0:02:58.3]} 8... Bb7 {[%clk 0:03:00.2]} 9. Qd3 {[%clk 0:02:58.6]} 9... d6 {[%clk
0:02:56.5]} 10. f4 {[%clk 0:02:58.4]} 10... Nbd7 {[%clk 0:02:56.6]} 11. b4
{[%clk 0:02:58.6]} 11... d5 {[%clk 0:02:56.7]} 12. e5 {[%clk 0:02:52.9]} 12...
dxc4 {[%clk 0:02:39.2]} 13. Qxc4 {[%clk 0:02:52.9]} 13... Qxc4 {[%clk
0:02:38.9]} 14. Bxc4 {[%clk 0:02:53.8]} 14... Rc8 {[%clk 0:02:26.8]} 15. Bb3
{[%clk 0:02:32.5]} 15... Bxb4 {[%clk 0:02:05.3]} 16. Nce2 {[%clk 0:02:31.8]}
16... Nd5 {[%clk 0:02:01.1]} 17. Bb2 {[%clk 0:02:24.9]} 17... O-O {[%clk
0:01:54.7]} 18. Kf2 {[%clk 0:02:18.5]} 18... Nc5 {[%clk 0:01:51.2]} 19. Rfd1
{[%clk 0:02:04]} 19... Ne4+ {[%clk 0:01:45.5]} 20. Kg1 {[%clk 0:01:58.7]} 20...
Nec3 {[%clk 0:01:33.4]} 21. Nxc3 {[%clk 0:01:22.9]} 21... Bxc3 {[%clk
0:01:25.1]} 22. Bxd5 {[%clk 0:01:14.9]} 22... Bxb2 {[%clk 0:00:55.4]} 23. Bxb7
{[%clk 0:01:12.5]} 23... Bxa1 {[%clk 0:00:43.3]} 24. Rxa1 {[%clk 0:01:10.8]}
24... Rc4 {[%clk 0:00:36.3]} 25. Ne2 {[%clk 0:01:03.5]} 25... a5 {[%clk
0:00:34.7]} 26. a4 {[%clk 0:01:01.5]} 26... Rd8 {[%clk 0:00:32.3]} 27. Kf2
{[%clk 0:00:57.8]} 27... Rd2 {[%clk 0:00:30.7]} 28. Ba6 {[%clk 0:00:57.9]} 28...
Rb4 {[%clk 0:00:24.9]} 29. Rc1 {[%clk 0:00:55.4]} 29... g6 {[%clk 0:00:24.3]}
30. Bb5 {[%clk 0:00:55.5]} 30... Rd8 {[%clk 0:00:20.3]} 31. g3 {[%clk
0:00:49.9]} 31... Kg7 {[%clk 0:00:20.3]} 32. Rc6 {[%clk 0:00:48.8]} 32... h5
{[%clk 0:00:15.8]} 33. Rxb6 {[%clk 0:00:48.2]} 33... Ra8 {[%clk 0:00:12.2]} 34.
Rb7 {[%clk 0:00:45.6]} 34... Kg8 {[%clk 0:00:09.3]} 35. Rd7 {[%clk 0:00:40.2]}
35... Kg7 {[%clk 0:00:07.1]} 36. Nd4 {[%clk 0:00:39.6]} 36... Kf8 {[%clk
0:00:07.2]} 37. h3 {[%clk 0:00:35.6]} 37... Kg8 {[%clk 0:00:05.5]} 38. g4 {[%clk
0:00:34.1]} 38... hxg4 {[%clk 0:00:06.4]} 39. hxg4 {[%clk 0:00:35]} 39... Kf8
{[%clk 0:00:07.2]} 40. Kg3 {[%clk 0:00:33.8]} 40... Kg8 {[%clk 0:00:06.5]} 41.
Kh4 {[%clk 0:00:33.5]} 41... Rc8 {[%clk 0:00:03.7]} 42. Nc6 {[%clk 0:00:32.5]}
1-0

[Event "*** Titled Tuesday Blitz"]
[Site "Chess.com"]
[Date "2021.04.20"]
[Round "8"]
[White "kuba2006"]
[Black "Zq1"]
[Result "0-1"]
[WhiteElo "2332"]
[BlackElo "2530"]
[TimeControl "180+1"]
[EndTime "11:26:48 PDT"]
[Termination "Zq1 won on time"]

1. b3 {[%clk 0:02:27.4]} 1... d5 {[%clk 0:02:58.8]} 2. Bb2 {[%clk 0:02:28.3]}
2... c5 {[%clk 0:02:58.3]} 3. e3 {[%clk 0:02:27.4]} 3... a6 {[%clk 0:02:57.6]}
4. Nf3 {[%clk 0:02:25.9]} 4... Nc6 {[%clk 0:02:58]} 5. Be2 {[%clk 0:02:23.6]}
5... f6 {[%clk 0:02:54.6]} 6. d4 {[%clk 0:02:20.8]} 6... Nh6 {[%clk 0:02:50.6]}
7. O-O {[%clk 0:02:18.5]} 7... e6 {[%clk 0:02:49.1]} 8. c4 {[%clk 0:02:15.3]}
8... cxd4 {[%clk 0:02:44.4]} 9. Nxd4 {[%clk 0:02:10.4]} 9... Nxd4 {[%clk
0:02:39.7]} 10. Qxd4 {[%clk 0:02:07.6]} 10... Nf5 {[%clk 0:02:37.7]} 11. Bh5+
{[%clk 0:01:57.1]} 11... Ke7 {[%clk 0:02:07.8]} 12. Ba3+ {[%clk 0:01:43.7]}
12... Kd7 {[%clk 0:02:06.3]} 13. Qf4 {[%clk 0:01:40.9]} 13... Bxa3 {[%clk
0:02:00.1]} 14. Nxa3 {[%clk 0:01:40.2]} 14... Ke7 {[%clk 0:01:45.5]} 15. cxd5
{[%clk 0:01:37]} 15... exd5 {[%clk 0:01:27.7]} 16. e4 {[%clk 0:01:32.3]} 16...
Qd6 {[%clk 0:01:21.2]} 17. Qxd6+ {[%clk 0:00:40.5]} 17... Nxd6 {[%clk 0:01:20]}
18. exd5 {[%clk 0:00:40.6]} 18... b5 {[%clk 0:01:17.4]} 19. Rfe1+ {[%clk
0:00:40.2]} 19... Kd7 {[%clk 0:01:14.4]} 20. Rad1 {[%clk 0:00:28.5]} 20... Bb7
{[%clk 0:01:12.1]} 21. Nc2 {[%clk 0:00:28.1]} 21... Rac8 {[%clk 0:01:08.1]} 22.
Nd4 {[%clk 0:00:24.5]} 22... g6 {[%clk 0:01:06.5]} 23. Bf3 {[%clk 0:00:21.4]}
23... Rc3 {[%clk 0:00:56.5]} 24. Nc6 {[%clk 0:00:20.2]} 24... Re8 {[%clk
0:00:43.3]} 25. Rxe8 {[%clk 0:00:19.8]} 25... Nxe8 {[%clk 0:00:34.5]} 26. Re1
{[%clk 0:00:19.6]} 26... Nc7 {[%clk 0:00:31]} 27. Ne7 {[%clk 0:00:03.9]} 27...
Kd6 {[%clk 0:00:28.3]} 28. h3 {[%clk 0:00:02.9]} 28... b4 {[%clk 0:00:24.7]} 29.
Re2 {[%clk 0:00:01.7]} 29... Nxd5 {[%clk 0:00:22.5]} 30. Nxd5 {[%clk 0:00:01.3]}
30... Bxd5 {[%clk 0:00:22]} 31. Rd2 {[%clk 0:00:01.8]} 31... Rc5 {[%clk
0:00:22.1]} 32. Rd4 {[%clk 0:00:02]} 32... a5 {[%clk 0:00:21.4]} 33. Bxd5 {[%clk
0:00:01.4]} 33... Rxd5 {[%clk 0:00:21.1]} 34. Rh4 {[%clk 0:00:01.4]} 34... h5
{[%clk 0:00:20]} 35. Rf4 {[%clk 0:00:01.1]} 35... Ke5 {[%clk 0:00:16.5]} 0-1

[Event "*** Titled Tuesday Blitz"]
[Site "Chess.com"]
[Date "2021.04.20"]
[Round "8"]
[White "canary2016"]
[Black "FMOlexandrProhorov"]
[Result "0-1"]
[WhiteElo "2015"]
[BlackElo "2241"]
[TimeControl "180+1"]
[EndTime "11:26:48 PDT"]
[Termination "FMOlexandrProhorov won by checkmate"]

1. d4 {[%clk 0:03:00.9]} 1... g6 {[%clk 0:02:57.2]} 2. c4 {[%clk 0:02:59.6]}
2... Bg7 {[%clk 0:02:50.9]} 3. Nf3 {[%clk 0:02:58.7]} 3... c5 {[%clk 0:02:49.7]}
4. d5 {[%clk 0:02:57.5]} 4... d6 {[%clk 0:02:45.9]} 5. g3 {[%clk 0:02:56.4]}
5... b5 {[%clk 0:02:42.7]} 6. cxb5 {[%clk 0:02:54.4]} 6... a6 {[%clk 0:02:43.6]}
7. e3 {[%clk 0:02:54.3]} 7... Nf6 {[%clk 0:02:41.7]} 8. Nc3 {[%clk 0:02:51.1]}
8... O-O {[%clk 0:02:40.8]} 9. Bg2 {[%clk 0:02:48.6]} 9... axb5 {[%clk
0:02:37.1]} 10. Nxb5 {[%clk 0:02:47.2]} 10... Ba6 {[%clk 0:02:37.7]} 11. Nc3
{[%clk 0:02:45.9]} 11... Nbd7 {[%clk 0:02:37.4]} 12. Bf1 {[%clk 0:02:24.4]}
12... Qa5 {[%clk 0:02:25]} 13. Be2 {[%clk 0:02:20.5]} 13... Ne4 {[%clk
0:02:10.9]} 14. O-O {[%clk 0:02:16.6]} 14... Nxc3 {[%clk 0:02:08.2]} 15. bxc3
{[%clk 0:02:16.5]} 15... Qxc3 {[%clk 0:01:55.5]} 16. Rb1 {[%clk 0:02:07.4]}
16... Qa5 {[%clk 0:01:33.3]} 17. a3 {[%clk 0:01:48.4]} 17... Rfb8 {[%clk
0:01:25.1]} 18. Rxb8+ {[%clk 0:01:38.1]} 18... Rxb8 {[%clk 0:01:26]} 19. Bxa6
{[%clk 0:01:36.9]} 19... Qxa6 {[%clk 0:01:26.9]} 20. Qc2 {[%clk 0:01:35.8]}
20... Nb6 {[%clk 0:01:17.9]} 21. e4 {[%clk 0:01:17.8]} 21... Na4 {[%clk
0:01:18]} 22. Rd1 {[%clk 0:01:14.8]} 22... Nc3 {[%clk 0:01:13.9]} 23. Rd3 {[%clk
0:01:08.4]} 23... Nxe4 {[%clk 0:01:09.7]} 24. Re3 {[%clk 0:00:49.3]} 24... f5
{[%clk 0:00:54.6]} 25. Nd2 {[%clk 0:00:40.9]} 25... Bd4 {[%clk 0:00:53.3]} 26.
Nxe4 {[%clk 0:00:15.7]} 26... Bxe3 {[%clk 0:00:53.5]} 27. Bxe3 {[%clk
0:00:12.9]} 27... fxe4 {[%clk 0:00:49.7]} 28. Qxe4 {[%clk 0:00:12.4]} 28... Qc8
{[%clk 0:00:47.3]} 29. Qxe7 {[%clk 0:00:09.8]} 29... Qf5 {[%clk 0:00:44.3]} 30.
Qe6+ {[%clk 0:00:07.1]} 30... Qxe6 {[%clk 0:00:44.2]} 31. dxe6 {[%clk 0:00:08]}
31... Kf8 {[%clk 0:00:44.6]} 32. Bf4 {[%clk 0:00:06]} 32... Ke7 {[%clk
0:00:44.5]} 33. Kg2 {[%clk 0:00:06]} 33... Kxe6 {[%clk 0:00:45.4]} 34. a4 {[%clk
0:00:04.8]} 34... Ra8 {[%clk 0:00:44.9]} 35. Be3 {[%clk 0:00:03.5]} 35... Rxa4
{[%clk 0:00:45.5]} 36. g4 {[%clk 0:00:03.7]} 36... Ra2 {[%clk 0:00:46.4]} 37. h3
{[%clk 0:00:03.7]} 37... c4 {[%clk 0:00:46.7]} 38. Kg3 {[%clk 0:00:04.2]} 38...
c3 {[%clk 0:00:45.3]} 39. h4 {[%clk 0:00:04.6]} 39... c2 {[%clk 0:00:45.5]} 40.
h5 {[%clk 0:00:04.1]} 40... Ra3 {[%clk 0:00:45.8]} 41. Kg2 {[%clk 0:00:03.2]}
41... Rxe3 {[%clk 0:00:45.2]} 42. fxe3 {[%clk 0:00:04.1]} 42... c1=Q {[%clk
0:00:46.1]} 43. hxg6 {[%clk 0:00:03.8]} 43... hxg6 {[%clk 0:00:46.1]} 44. Kf3
{[%clk 0:00:04.7]} 44... Kd5 {[%clk 0:00:46.4]} 45. Kf2 {[%clk 0:00:05]} 45...
Ke4 {[%clk 0:00:46.6]} 46. Ke2 {[%clk 0:00:05.5]} 46... Qc2+ {[%clk 0:00:46.7]}
47. Kf1 {[%clk 0:00:06]} 47... Kf3 {[%clk 0:00:46.8]} 48. Kg1 {[%clk 0:00:06.9]}
48... Qg2# {[%clk 0:00:47.1]} 0-1

[Event "*** Titled Tuesday Blitz"]
[Site "Chess.com"]
[Date "2021.04.20"]
[Round "8"]
[White "Valeron87"]
[Black "topin8"]
[Result "1-0"]
[WhiteElo "2377"]
[BlackElo "2192"]
[TimeControl "180+1"]
[EndTime "11:26:49 PDT"]
[Termination "Valeron87 won on time"]

1. e4 {[%clk 0:02:57.7]} 1... c5 {[%clk 0:02:54.2]} 2. Nf3 {[%clk 0:02:57.5]}
2... Nc6 {[%clk 0:02:54.3]} 3. d4 {[%clk 0:02:57.2]} 3... cxd4 {[%clk
0:02:54.6]} 4. Nxd4 {[%clk 0:02:58.1]} 4... Nf6 {[%clk 0:02:54.8]} 5. Nc3 {[%clk
0:02:56.3]} 5... e5 {[%clk 0:02:54.9]} 6. Ndb5 {[%clk 0:02:54.9]} 6... h6 {[%clk
0:02:55.2]} 7. Nd6+ {[%clk 0:02:53.6]} 7... Bxd6 {[%clk 0:02:55.4]} 8. Qxd6
{[%clk 0:02:54.1]} 8... Qe7 {[%clk 0:02:56.1]} 9. Qd1 {[%clk 0:02:25.5]} 9... d6
{[%clk 0:02:50.8]} 10. Be2 {[%clk 0:02:17]} 10... O-O {[%clk 0:02:47.7]} 11. Be3
{[%clk 0:02:16.3]} 11... Be6 {[%clk 0:02:45.3]} 12. Nd5 {[%clk 0:02:02.2]} 12...
Bxd5 {[%clk 0:02:37.2]} 13. exd5 {[%clk 0:02:01.4]} 13... Nb8 {[%clk 0:02:37.1]}
14. O-O {[%clk 0:01:59.6]} 14... Nbd7 {[%clk 0:02:36.6]} 15. a4 {[%clk
0:01:52.1]} 15... a5 {[%clk 0:02:05.4]} 16. Bb5 {[%clk 0:01:46]} 16... Ne4
{[%clk 0:01:49.4]} 17. Bxh6 {[%clk 0:01:26.6]} 17... f5 {[%clk 0:00:24.1]} 18.
f3 {[%clk 0:01:06.5]} 18... Nec5 {[%clk 0:00:09.3]} 19. Be3 {[%clk 0:01:06]}
19... f4 {[%clk 0:00:09.7]} 20. Bf2 {[%clk 0:01:04.5]} 20... g5 {[%clk
0:00:10.1]} 21. c3 {[%clk 0:01:01.9]} 21... b6 {[%clk 0:00:07.7]} 22. Qc2 {[%clk
0:01:00.6]} 22... Kg7 {[%clk 0:00:07.1]} 23. b4 {[%clk 0:00:58.4]} 23... Nb7
{[%clk 0:00:06.6]} 24. Bxd7 {[%clk 0:00:42.5]} 24... Qxd7 {[%clk 0:00:06.2]} 25.
Bxb6 {[%clk 0:00:43.1]} 25... axb4 {[%clk 0:00:05.5]} 26. cxb4 {[%clk
0:00:41.9]} 26... Rfc8 {[%clk 0:00:06.2]} 27. Qd3 {[%clk 0:00:38.4]} 27... Rxa4
{[%clk 0:00:04.3]} 28. Rxa4 {[%clk 0:00:34]} 28... Qxa4 {[%clk 0:00:05.2]} 29.
Qf5 {[%clk 0:00:34.3]} 29... Qxb4 {[%clk 0:00:04.3]} 30. Qd7+ {[%clk 0:00:28]}
30... Kg6 {[%clk 0:00:03.8]} 31. Qxb7 {[%clk 0:00:18.2]} 31... Rc2 {[%clk
0:00:03.7]} 32. Qb8 {[%clk 0:00:16.7]} 32... Rb2 {[%clk 0:00:02]} 33. Qg8+
{[%clk 0:00:15.9]} 33... Kh6 {[%clk 0:00:01.9]} 34. Bd8 {[%clk 0:00:14.1]} 1-0

[Event "*** Titled Tuesday Blitz"]
[Site "Chess.com"]
[Date "2021.04.20"]
[Round "8"]
[White "gisela_roque"]
[Black "chesslh19"]
[Result "0-1"]
[WhiteElo "1821"]
[BlackElo "2235"]
[TimeControl "180+1"]
[EndTime "11:26:49 PDT"]
[Termination "chesslh19 won by resignation"]

1. c4 {[%clk 0:03:00.9]} 1... e6 {[%clk 0:02:59.7]} 2. Nf3 {[%clk 0:02:55.6]}
2... d5 {[%clk 0:02:59.8]} 3. b3 {[%clk 0:02:52.8]} 3... Nf6 {[%clk 0:02:59.1]}
4. g3 {[%clk 0:02:51.9]} 4... Be7 {[%clk 0:02:58.6]} 5. Bg2 {[%clk 0:02:52.1]}
5... O-O {[%clk 0:02:58.8]} 6. O-O {[%clk 0:02:52.1]} 6... b6 {[%clk 0:02:59.3]}
7. d3 {[%clk 0:02:52]} 7... Bb7 {[%clk 0:02:58.6]} 8. e3 {[%clk 0:02:49.5]} 8...
c5 {[%clk 0:02:54.3]} 9. Nc3 {[%clk 0:02:43.8]} 9... Nbd7 {[%clk 0:02:50.3]} 10.
Bb2 {[%clk 0:02:34.1]} 10... Qc7 {[%clk 0:02:26.5]} 11. cxd5 {[%clk 0:02:25.4]}
11... Nxd5 {[%clk 0:02:18.5]} 12. Nxd5 {[%clk 0:02:25.1]} 12... Bxd5 {[%clk
0:02:11.8]} 13. Qc2 {[%clk 0:02:20.9]} 13... Rac8 {[%clk 0:02:07.1]} 14. Rac1
{[%clk 0:02:15.4]} 14... Qb7 {[%clk 0:02:01.3]} 15. Qe2 {[%clk 0:01:57.7]} 15...
Bf6 {[%clk 0:01:54.5]} 16. Bxf6 {[%clk 0:01:55.7]} 16... Nxf6 {[%clk 0:01:54.4]}
17. Nh4 {[%clk 0:01:52.5]} 17... Bxg2 {[%clk 0:01:53.4]} 18. Nxg2 {[%clk
0:01:53.4]} 18... Rfd8 {[%clk 0:01:52.8]} 19. Rfd1 {[%clk 0:01:52.5]} 19... Nd5
{[%clk 0:01:24.4]} 20. Nh4 {[%clk 0:01:32.8]} 20... h6 {[%clk 0:01:18]} 21. Nf3
{[%clk 0:01:32]} 21... Nb4 {[%clk 0:01:11.8]} 22. a3 {[%clk 0:01:18.3]} 22...
Nxd3 {[%clk 0:01:06.8]} 23. Rxd3 {[%clk 0:01:15.8]} 23... Rxd3 {[%clk 0:01:07]}
24. Qxd3 {[%clk 0:01:15.4]} 24... Qxf3 {[%clk 0:01:07.6]} 25. b4 {[%clk
0:01:12.7]} 25... Qd5 {[%clk 0:01:06.6]} 26. Qxd5 {[%clk 0:01:02.6]} 26... exd5
{[%clk 0:01:06.5]} 27. bxc5 {[%clk 0:01:02.6]} 27... Rxc5 {[%clk 0:01:01.2]} 28.
Rd1 {[%clk 0:01:02.4]} 28... Kf8 {[%clk 0:00:57.7]} 29. Kg2 {[%clk 0:01:00.7]}
29... Ke7 {[%clk 0:00:57.7]} 30. Kf3 {[%clk 0:01:00.7]} 30... Ke6 {[%clk
0:00:58]} 31. Rd3 {[%clk 0:00:54]} 31... Rc4 {[%clk 0:00:55.2]} 32. h4 {[%clk
0:00:44.4]} 32... h5 {[%clk 0:00:53.2]} 33. Ke2 {[%clk 0:00:34.8]} 33... g6
{[%clk 0:00:52.9]} 34. Kd2 {[%clk 0:00:34.7]} 34... b5 {[%clk 0:00:50.6]} 35.
Rb3 {[%clk 0:00:34.5]} 35... a6 {[%clk 0:00:50.5]} 36. Kd3 {[%clk 0:00:33.1]}
36... Rc1 {[%clk 0:00:49.5]} 37. Rb4 {[%clk 0:00:25.6]} 37... Ra1 {[%clk
0:00:45.6]} 38. Rb3 {[%clk 0:00:25.3]} 38... Ke5 {[%clk 0:00:43.3]} 39. Ke2
{[%clk 0:00:17.1]} 39... Ra2+ {[%clk 0:00:42.6]} 40. Kf3 {[%clk 0:00:17.1]}
40... Kd6 {[%clk 0:00:38.4]} 41. e4 {[%clk 0:00:16.1]} 41... d4 {[%clk
0:00:33.8]} 42. Rd3 {[%clk 0:00:13.9]} 42... Kc5 {[%clk 0:00:30.9]} 43. e5
{[%clk 0:00:14.1]} 43... Kd5 {[%clk 0:00:27.2]} 0-1

[Event "*** Titled Tuesday Blitz"]
[Site "Chess.com"]
[Date "2021.04.20"]
[Round "8"]
[White "Kretov_Evgenij"]
[Black "hansen"]
[Result "0-1"]
[WhiteElo "2658"]
[BlackElo "2819"]
[TimeControl "180+1"]
[EndTime "11:26:53 PDT"]
[Termination "hansen won by checkmate"]

1. d4 {[%clk 0:03:00.9]} 1... Nf6 {[%clk 0:03:00]} 2. c4 {[%clk 0:03:01.1]} 2...
g6 {[%clk 0:02:52.8]} 3. Nc3 {[%clk 0:03:01.1]} 3... d5 {[%clk 0:02:52.5]} 4.
cxd5 {[%clk 0:03:01]} 4... Nxd5 {[%clk 0:02:53.4]} 5. Bd2 {[%clk 0:03:01.6]}
5... Bg7 {[%clk 0:02:53.4]} 6. e4 {[%clk 0:03:01.7]} 6... Nb6 {[%clk 0:02:54]}
7. Be3 {[%clk 0:03:01.7]} 7... O-O {[%clk 0:02:51.7]} 8. h3 {[%clk 0:03:02]}
8... e5 {[%clk 0:02:45.9]} 9. Nf3 {[%clk 0:02:58.8]} 9... exd4 {[%clk
0:02:45.7]} 10. Nxd4 {[%clk 0:02:59.1]} 10... Qe7 {[%clk 0:02:44]} 11. Qc2
{[%clk 0:02:52.6]} 11... c5 {[%clk 0:02:30.6]} 12. Nb3 {[%clk 0:02:48]} 12... c4
{[%clk 0:02:18]} 13. Nd2 {[%clk 0:02:47.5]} 13... Be6 {[%clk 0:02:13.9]} 14.
Bxb6 {[%clk 0:02:30.2]} 14... axb6 {[%clk 0:02:11.4]} 15. Bxc4 {[%clk
0:02:28.8]} 15... Rc8 {[%clk 0:02:08.7]} 16. Bxe6 {[%clk 0:02:27.6]} 16... Qxe6
{[%clk 0:02:08.6]} 17. O-O {[%clk 0:02:26.3]} 17... Nc6 {[%clk 0:02:00.3]} 18.
a3 {[%clk 0:01:51.3]} 18... Nd4 {[%clk 0:02:00]} 19. Qd3 {[%clk 0:01:50.2]}
19... Rd8 {[%clk 0:01:57.6]} 20. Nd5 {[%clk 0:01:47.4]} 20... Rac8 {[%clk
0:01:55.1]} 21. Rac1 {[%clk 0:01:44.6]} 21... Rc6 {[%clk 0:01:48.3]} 22. Kh1
{[%clk 0:01:26.8]} 22... f5 {[%clk 0:01:27.1]} 23. f3 {[%clk 0:01:16.4]} 23...
fxe4 {[%clk 0:01:05.1]} 24. fxe4 {[%clk 0:01:15.5]} 24... b5 {[%clk 0:01:00.4]}
25. Nf3 {[%clk 0:01:11.3]} 25... Rxc1 {[%clk 0:00:52.6]} 26. Rxc1 {[%clk
0:01:10.1]} 26... Nxf3 {[%clk 0:00:51.9]} 27. Qxf3 {[%clk 0:01:09.4]} 27... Bxb2
{[%clk 0:00:47.2]} 28. Rc7 {[%clk 0:01:01]} 28... Re8 {[%clk 0:00:14.8]} 29. Qb3
{[%clk 0:00:36.3]} 29... Be5 {[%clk 0:00:13.3]} 30. Rxb7 {[%clk 0:00:36.1]}
30... Kh8 {[%clk 0:00:09.9]} 31. Qxb5 {[%clk 0:00:30.9]} 31... Rc8 {[%clk
0:00:04.6]} 32. Qf1 {[%clk 0:00:28]} 32... Qd6 {[%clk 0:00:02.8]} 33. a4 {[%clk
0:00:22.8]} 33... Qa3 {[%clk 0:00:02.5]} 34. Rf7 {[%clk 0:00:22]} 34... Rc1
{[%clk 0:00:02.1]} 35. Rf8+ {[%clk 0:00:22.2]} 35... Kg7 {[%clk 0:00:02.5]} 36.
Rf7+ {[%clk 0:00:20.7]} 36... Kh6 {[%clk 0:00:03]} 37. h4 {[%clk 0:00:17.4]}
37... Rxf1+ {[%clk 0:00:03]} 38. Rxf1 {[%clk 0:00:17.6]} 38... Qg3 {[%clk
0:00:03.6]} 39. Kg1 {[%clk 0:00:17.5]} 39... Bd4+ {[%clk 0:00:04]} 40. Kh1
{[%clk 0:00:17.9]} 40... Qxh4# {[%clk 0:00:04.3]} 0-1